bitfinex/quotes_SOLUSD_20251118
["timestamp","ask_amount","ask_price","bid_price","bid_amount"]
[1763447707292,4.44,135.79,135.77,6.81709208]
[1763447707803,18.49303003,135.79,135.74,6.11709208]
[1763447707991,18.49303003,135.79,135.74,6.81709208]
[1763447708197,13.35303003,135.77,135.73,6.81709208]
[1763447708379,4.44,135.76,135.73,0.7]
[1763447708574,4.44,135.76,135.72,6.11709208]
[1763447708893,17.79303003,135.76,135.73,0.7]
[1763447709793,18.12096,135.8,135.74,6.11709208]
[1763447709986,13.35303003,135.78,135.74,6.11709208]
[1763447710315,4.44,135.78,135.76,6.11709208]
[1763447710680,4.44,135.78,135.76,0.7]
[1763447711104,14.05303003,135.77,135.73,6.11709208]
[1763447711276,0.7,135.77,135.72,6.11709208]
[1763447711476,0.7,135.77,135.71,8.05302296]
[1763447711804,13.35303003,135.72,135.71,1.93593088]
[1763447712106,4.44,135.72,135.71,1.93593088]
[1763447712880,17.79303003,135.72,135.71,1.93593088]
[1763447713501,4.44,135.72,135.71,1.93593088]
[1763447713700,17.79303003,135.72,135.71,1.93593088]
[1763447715385,18.47303003,135.72,135.71,1.93593088]
[1763447716518,4.44,135.72,135.71,1.93593088]
[1763447716681,17.79303003,135.72,135.71,1.93593088]
[1763447717002,4.44,135.72,135.71,1.93593088]
[1763447717310,17.79303003,135.72,135.71,1.93593088]
[1763447717685,4.44,135.72,135.71,1.93593088]
[1763447717889,17.79303003,135.72,135.71,1.93593088]
[1763447718207,18.47303003,135.72,135.71,1.93593088]
[1763447719009,17.79303003,135.72,135.71,1.93593088]
[1763447719214,4.44,135.72,135.71,2.65593088]
[1763447719410,17.79303003,135.72,135.71,1.93593088]
[1763447719595,18.45303003,135.72,135.71,1.93593088]
[1763447720112,18.12096,135.75,135.71,1.93593088]
[1763447720312,13.35303003,135.73,135.71,2.62593088]
[1763447720682,13.35303003,135.77,135.72,0.69]
[1763447720883,37.85782253,135.9,135.71,1.93593088]
[1763447720884,13.35303003,135.75,135.71,1.93593088]
[1763447721198,13.35303003,135.73,135.71,1.93593088]
[1763447721415,17.79303003,135.72,135.71,1.93593088]
[1763447721915,5.1,135.72,135.71,1.93593088]
[1763447722090,18.45303003,135.72,135.71,1.93593088]
[1763447723300,4.44,135.72,135.71,1.93593088]
[1763447723705,17.79303003,135.72,135.71,1.93593088]
[1763447727893,22.56096,135.72,135.71,1.93593088]
[1763447728214,36.57399003,135.72,135.71,1.93593088]
[1763447730892,30.90211042,135.72,135.71,1.93593088]
[1763447731405,22.56096,135.72,135.71,1.93593088]
[1763447731595,12.12115042,135.72,135.71,1.93593088]
[1763447732625,12.78115042,135.72,135.71,1.93593088]
[1763447733004,12.12115042,135.72,135.71,1.93593088]
[1763447733301,4.44,135.72,135.71,1.93593088]
[1763447734001,12.12115042,135.72,135.71,1.93593088]
[1763447735326,4.44,135.72,135.71,2.62593088]
[1763447735529,7.68115042,135.76,135.71,2.62593088]
[1763447735702,7.68115042,135.76,135.72,0.69]
[1763447735703,4.44,135.75,135.72,0.69]
[1763447736312,12.12115042,135.75,135.72,0.69]
[1763447736637,7.68115042,135.74,135.72,0.69]
[1763447736800,4.44,135.73,135.72,0.69]
[1763447737235,4.44,135.73,135.71,1.93593088]
[1763447737402,4.44,135.73,135.71,2.62593088]
[1763447738103,4.44,135.73,135.72,0.69]
[1763447738625,8.34115042,135.82,135.73,9.78882769]
[1763447738933,8.34115042,135.84,135.77,7.68115042]
[1763447739136,8.34115042,135.84,135.78,7.68115042]
[1763447739320,4.44,135.83,135.79,7.68115042]
[1763447739626,4.44,135.82,135.78,13.86259663]
[1763447739826,4.44,135.81,135.78,13.86259663]
[1763447740845,4.44,135.81,135.77,13.86259663]
[1763447741001,4.44,135.81,135.77,6.18144621]
[1763447741327,4.44,135.81,135.75,6.18144621]
[1763447741328,0.66,135.8,135.75,6.18144621]
[1763447741506,12.12115042,135.81,135.75,6.18144621]
[1763447742225,12.81115042,135.81,135.74,13.86259663]
[1763447742428,12.81115042,135.81,135.75,6.18144621]
[1763447742623,7.68115042,135.8,135.74,6.18144621]
[1763447742830,8.37115042,135.8,135.74,6.18144621]
[1763447743211,7.68115042,135.79,135.74,6.18144621]
[1763447743446,7.68115042,135.77,135.71,8.11737709]
[1763447743838,8.37115042,135.77,135.71,8.11737709]
[1763447744214,0.69,135.76,135.71,1.93593088]
[1763447744535,4.44,135.75,135.71,1.93593088]
[1763447744913,12.12115042,135.75,135.71,1.93593088]
[1763447745235,12.81115042,135.75,135.71,1.93593088]
[1763447745833,7.68115042,135.73,135.71,1.93593088]
[1763447746131,4.44,135.72,135.71,1.93593088]
[1763447748329,5.13,135.72,135.71,1.93593088]
[1763447748524,4.44,135.72,135.71,1.93593088]
[1763447750912,4.44,135.74,135.72,6.18333295]
[1763447751816,4.44,135.74,135.73,6.18333295]
[1763447752316,4.44,135.74,135.72,6.18333295]
[1763447753138,4.44,135.74,135.73,6.18333295]
[1763447755238,8.37115042,135.79,135.73,7.68115042]
[1763447755436,4.44,135.77,135.74,6.19187455]
[1763447755740,4.44,135.77,135.75,6.19187455]
[1763447756721,5.13,135.77,135.74,6.19187455]
[1763447756926,4.44,135.77,135.75,6.19187455]
[1763447757139,4.44,135.77,135.74,6.19187455]
[1763447757624,5.13,135.77,135.74,6.19187455]
[1763447758255,4.44,135.77,135.74,6.19187455]
[1763447760034,0.69,135.76,135.73,6.19187455]
[1763447760239,12.81115042,135.77,135.73,6.19187455]
[1763447760431,5.13,135.77,135.73,6.19187455]
[1763447760751,4.44,135.77,135.74,13.87302497]
[1763447761048,4.44,135.77,135.76,6.19187455]
[1763447761279,0.2,135.89,135.77,27.90978769]
[1763447761556,7.68115042,135.87,135.81,13.86375002]
[1763447761855,7.68115042,135.86,135.81,6.1825996]
[1763447762224,8.37115042,135.85,135.81,6.1825996]
[1763447762427,8.37115042,135.85,135.79,8.24346613]
[1763447762428,12.12115042,135.84,135.79,6.1825996]
[1763447762635,7.68115042,135.81,135.78,6.1825996]
[1763447762825,7.68115042,135.79,135.76,6.1825996]
[1763447763040,7.68115042,135.78,135.74,6.1825996]
[1763447763454,0.69,135.77,135.73,6.1825996]
[1763447763753,4.44,135.76,135.72,6.1825996]
[1763447764125,4.44,135.76,135.72,13.86375002]
[1763447764326,4.44,135.76,135.73,6.1825996]
[1763447764529,0.69,135.84,135.76,9.78882769]
[1763447764725,4.44,135.83,135.78,13.86375002]
[1763447765148,5.13,135.83,135.79,6.1825996]
[1763447766329,0.69,135.82,135.79,6.1825996]
[1763447766537,0.69,135.82,135.8,6.1825996]
[1763447767054,4.44,135.83,135.8,6.1825996]
[1763447767550,5.13,135.83,135.79,6.1825996]
[1763447768941,5.13,135.83,135.79,13.86375002]
[1763447769261,0.89,135.89,135.82,7.68115042]
[1763447769424,0.2,135.89,135.85,7.68115042]
[1763447769624,4.64,135.89,135.86,7.68115042]
[1763447769933,0.2,135.89,135.88,13.86375002]
[1763447770326,0.2,135.89,135.88,23.62429347]
[1763447770533,0.2,135.93,135.89,9.78882769]
[1763447770726,0.2,135.93,135.91,7.68115042]
[1763447771150,0.2,135.93,135.92,7.68115042]
[1763447771937,0.2,135.93,135.91,6.15406706]
[1763447772145,0.2,135.93,135.88,25.80211042]
[1763447772341,0.2,135.93,135.89,7.68115042]
[1763447772850,0.2,135.93,135.89,17.46997811]
[1763447773046,0.2,136.03,135.92,7.68115042]
[1763447773254,7.68115042,135.99,135.93,25.80211042]
[1763447773643,7.68115042,136.0,135.95,7.68115042]
[1763447773844,7.68115042,136.01,135.95,7.68115042]
[1763447774155,4.44,136.01,135.98,7.68115042]
[1763447774535,0.2,136.03,135.99,7.68115042]
[1763447774747,0.2,136.03,135.98,7.68115042]
[1763447774947,0.2,136.03,135.96,18.85647044]
[1763447774948,8.39115042,136.02,135.96,25.80211042]
[1763447775265,0.71,136.02,135.96,18.72096]
[1763447775444,0.71,136.02,135.98,7.68115042]
[1763447776037,0.2,136.03,135.99,7.68115042]
[1763447776239,0.91,136.03,135.98,7.68115042]
[1763447776638,0.91,136.03,135.99,7.68115042]
[1763447777444,0.91,136.03,136.0,7.68115042]
[1763447777645,0.2,136.03,136.02,7.68115042]
[1763447777857,0.2,136.03,136.02,27.90978769]
[1763447778165,0.2,136.03,136.02,25.80211042]
[1763447778539,0.91,136.03,136.01,18.12096]
[1763447778757,0.2,136.03,136.01,18.12096]
[1763447778940,0.2,136.03,136.01,25.80211042]
[1763447779269,0.2,136.03,136.02,18.06997811]
[1763447779565,0.2,136.03,136.02,35.59093811]
[1763447779768,0.2,136.03,136.02,18.12096]
[1763447780738,0.2,136.03,136.02,25.80211042]
[1763447782154,0.2,136.03,136.0,18.72096]
[1763447782475,0.2,136.03,136.02,7.68115042]
[1763447783673,0.2,136.03,136.0,18.72096]
[1763447783849,0.2,136.03,136.01,7.68115042]
[1763447784052,0.2,136.03,136.0,18.72096]
[1763447784248,0.2,136.03,136.02,7.68115042]
[1763447784741,8.54115042,136.03,135.95,0.6]
[1763447784942,8.54115042,136.03,135.98,7.68115042]
[1763447785486,0.66,136.02,135.98,7.68115042]
[1763447785769,8.34115042,136.02,135.97,25.80211042]
[1763447785974,0.66,136.02,135.97,25.80211042]
[1763447786271,0.66,136.02,135.98,7.68115042]
[1763447786439,0.66,136.02,135.98,8.28115042]
[1763447786642,0.66,136.02,135.98,7.68115042]
[1763447786844,8.34115042,136.02,135.97,25.80211042]
[1763447787081,0.66,136.02,135.98,7.68115042]
[1763447787556,8.34115042,136.02,135.97,26.40211042]
[1763447787761,7.68115042,135.99,135.93,5.02]
[1763447788059,0.66,136.01,135.96,7.68115042]
[1763447788374,8.34115042,136.01,135.96,7.68115042]
[1763447788746,0.66,136.0,135.96,7.68115042]
[1763447788970,8.34115042,136.01,135.97,7.68115042]
[1763447789169,0.66,136.0,135.96,8.28115042]
[1763447789691,5.08,136.02,135.98,7.68115042]
[1763447789988,12.76115042,136.02,135.97,7.68115042]
[1763447790290,5.08,136.02,135.97,8.28115042]
[1763447790567,5.08,136.02,135.98,7.68115042]
[1763447790738,5.08,136.02,135.95,18.12096]
[1763447790739,13.96948572,136.01,135.96,13.30948572]
[1763447790944,13.30948572,136.0,135.95,31.43044572]
[1763447791165,0.66,136.0,135.96,13.30948572]
[1763447791543,0.2,136.03,135.99,13.30948572]
[1763447791750,0.2,136.03,136.0,13.30948572]
[1763447791944,0.86,136.03,135.99,13.30948572]
[1763447792362,0.2,136.03,136.01,13.30948572]
[1763447792763,0.86,136.03,135.99,13.30948572]
[1763447793165,0.66,136.02,135.99,13.30948572]
[1763447793487,0.2,136.03,136.0,13.30948572]
[1763447793768,0.86,136.03,135.98,18.12096]
[1763447793977,0.86,136.03,136.0,13.30948572]
[1763447794347,0.2,136.03,136.0,13.30948572]
[1763447794548,0.86,136.03,136.01,13.30948572]
[1763447795076,0.86,136.03,136.0,13.30948572]
[1763447795280,0.2,136.03,136.01,13.30948572]
[1763447795576,0.86,136.03,136.0,13.30948572]
[1763447796254,0.86,136.03,136.01,13.30948572]
[1763447796671,0.66,136.02,135.98,18.12096]
[1763447796869,0.2,136.03,136.0,13.30948572]
[1763447797052,0.86,136.03,136.0,13.30948572]
[1763447797676,0.86,136.03,136.01,13.30948572]
[1763447797880,0.66,136.02,135.98,13.30948572]
[1763447798256,0.66,136.02,135.97,18.12096]
[1763447798257,0.66,136.02,135.99,13.30948572]
[1763447798472,0.66,136.02,136.0,13.30948572]
[1763447798664,0.66,136.02,135.99,13.30948572]
[1763447799067,13.30948572,136.0,135.92,9.78882769]
[1763447799256,4.42,135.99,135.96,13.30948572]
[1763447799681,0.66,135.98,135.93,0.6]
[1763447799885,0.66,135.98,135.95,13.30948572]
[1763447800185,0.66,135.98,135.96,13.30948572]
[1763447800968,4.42,136.0,135.97,13.30948572]
[1763447801169,5.08,136.0,135.98,13.30948572]
[1763447801386,5.08,136.0,135.97,13.30948572]
[1763447801968,0.67,135.99,135.97,13.30948572]
[1763447802170,0.67,136.0,135.98,13.30948572]
[1763447802365,5.09,136.0,135.98,13.30948572]
[1763447802565,13.50948572,136.03,135.99,13.90948572]
[1763447802566,0.2,136.03,135.99,13.90948572]
[1763447802798,0.67,136.02,136.0,13.30948572]
[1763447802993,0.67,136.02,135.98,18.72096]
[1763447803172,0.67,136.02,135.97,18.12096]
[1763447803507,0.67,136.02,135.98,13.30948572]
[1763447803694,0.67,136.02,135.97,18.12096]
[1763447803881,0.67,136.02,135.98,13.30948572]
[1763447804278,0.67,136.02,135.99,13.30948572]
[1763447804486,0.67,136.02,135.98,13.30948572]
[1763447804973,0.67,136.02,135.97,18.12096]
[1763447805171,0.67,136.02,135.98,13.30948572]
[1763447805878,0.67,136.02,135.99,13.30948572]
[1763447806383,0.67,136.02,135.98,13.30948572]
[1763447807267,0.67,136.02,135.99,13.30948572]
[1763447807896,0.67,136.02,136.0,13.30948572]
[1763447808174,13.97948572,136.02,135.96,13.30948572]
[1763447808371,13.30948572,136.0,135.94,13.30948572]
[1763447808676,4.42,135.99,135.94,31.43044572]
[1763447809007,5.09,135.99,135.93,0.6]
[1763447809185,13.97948572,135.98,135.91,6.15406706]
[1763447809499,0.67,135.98,135.93,13.30948572]
[1763447809674,0.67,135.98,135.92,6.15406706]
[1763447809675,0.67,135.97,135.92,13.30948572]
[1763447810190,0.67,135.97,135.95,13.30948572]
[1763447810586,5.09,135.99,135.94,6.15406706]
[1763447810790,0.67,135.98,135.96,13.30948572]
[1763447810978,0.67,135.98,135.95,13.30948572]
[1763447811300,13.97948572,135.98,135.93,13.30948572]
[1763447811485,13.97948572,135.98,135.94,13.30948572]
[1763447811486,0.67,135.98,135.94,13.30948572]
[1763447811684,0.67,135.97,135.94,13.30948572]
[1763447811880,0.67,135.97,135.93,13.30948572]
[1763447812806,0.67,135.97,135.92,6.15406706]
[1763447813507,0.67,135.97,135.93,6.15406706]
[1763447813680,0.67,135.97,135.91,8.24346613]
[1763447813681,13.30948572,135.95,135.92,6.15406706]
[1763447813871,4.42,135.94,135.92,6.15406706]
[1763447814072,5.09,135.94,135.92,6.15406706]
[1763447814271,0.67,135.93,135.92,6.15406706]
[1763447814505,0.67,135.93,135.91,8.24346613]
[1763447815810,13.97948572,135.93,135.91,8.24346613]
[1763447815999,13.97948572,135.93,135.88,13.30948572]
[1763447816000,13.97948572,135.93,135.9,6.18454523]
[1763447816200,4.42,135.94,135.9,6.18454523]
[1763447816201,0.67,135.92,135.9,6.18454523]
[1763447817512,0.67,135.92,135.91,6.18454523]
[1763447817708,4.42,135.94,135.91,13.30948572]
[1763447817883,4.42,135.94,135.92,19.49189818]
[1763447818084,4.42,135.94,135.92,6.18241246]
[1763447818697,5.09,135.94,135.92,6.18241246]
[1763447819098,5.09,135.93,135.92,6.18241246]
[1763447819697,5.09,135.93,135.92,6.18007287]
[1763447820018,5.09,135.93,135.92,19.48955859]
[1763447820203,5.09,135.93,135.92,6.18007287]
[1763447820907,18.39948572,135.93,135.89,6.18007287]
[1763447821100,13.97948572,135.92,135.89,6.18007287]
[1763447821509,0.67,135.91,135.89,6.18007287]
[1763447821714,5.09,135.91,135.9,19.48955859]
[1763447821916,5.09,135.91,135.9,6.18007287]
[1763447822107,5.09,135.91,135.89,19.48955859]
[1763447822306,4.42,135.91,135.9,13.30948572]
[1763447822494,4.42,135.92,135.9,13.30948572]
[1763447822700,4.42,135.92,135.91,6.17344531]
[1763447822912,0.67,135.91,135.9,6.17344531]
[1763447823114,0.67,135.91,135.89,6.17344531]
[1763447823419,0.67,135.91,135.88,6.17344531]
[1763447823604,0.67,135.91,135.87,6.17344531]
[1763447823802,27.90978769,135.97,135.9,13.30948572]
[1763447823803,0.67,135.97,135.9,13.30948572]
[1763447824018,0.67,135.97,135.89,21.95056055]
[1763447824019,5.09,135.97,135.94,13.30948572]
[1763447824226,5.09,135.97,135.95,13.30948572]
[1763447824402,5.09,135.97,135.95,19.48139472]
[1763447824596,0.67,135.96,135.94,6.171909]
[1763447825222,0.67,135.96,135.94,19.48139472]
[1763447825521,4.42,135.98,135.95,19.48189415]
[1763447825822,5.09,135.98,135.96,6.17197124]
[1763447826021,13.97948572,135.97,135.94,6.17197124]
[1763447826328,0.67,135.97,135.93,6.17197124]
[1763447826496,4.42,135.98,135.94,19.48145696]
[1763447826827,5.09,135.98,135.95,19.48145696]
[1763447826994,5.09,135.98,135.95,6.17197124]
[1763447826995,0.67,135.97,135.95,6.17197124]
[1763447828229,0.67,135.97,135.94,6.17197124]
[1763447828396,0.67,135.97,135.93,6.17197124]
[1763447828596,13.30948572,135.96,135.93,6.17197124]
[1763447828804,13.30948572,135.96,135.92,6.17197124]
[1763447829099,0.67,135.95,135.92,6.17197124]
[1763447829316,4.42,135.94,135.92,6.17197124]
[1763447829928,5.09,135.94,135.92,6.17197124]
[1763447830102,0.67,135.93,135.92,6.17197124]
[1763447830502,0.67,135.93,135.91,6.17197124]
[1763447831107,13.97948572,135.93,135.91,6.17197124]
[1763447831318,13.97948572,135.92,135.9,6.17197124]
[1763447831507,13.30948572,135.91,135.87,6.17874033]
[1763447831717,13.30948572,135.89,135.87,6.17874033]
[1763447832131,0.68,135.88,135.86,6.17874033]
[1763447832514,4.42,135.87,135.86,6.17874033]
[1763447833030,5.1,135.87,135.86,6.17874033]
[1763447833736,0.68,135.89,135.86,6.17874033]
[1763447834039,4.42,135.88,135.86,19.48822605]
[1763447834722,5.1,135.88,135.86,6.17874033]
[1763447835410,5.1,135.88,135.86,6.16935302]
[1763447835607,4.42,135.88,135.86,6.16935302]
[1763447835834,5.1,135.88,135.86,6.16935302]
[1763447836242,5.1,135.88,135.85,13.30948572]
[1763447836243,5.1,135.88,135.85,19.47883874]
[1763447837635,22.54096,135.88,135.86,13.30948572]
[1763447837939,0.68,135.87,135.85,19.47883874]
[1763447838117,0.68,135.87,135.85,6.16935302]
[1763447838538,0.68,135.87,135.84,6.16935302]
[1763447839830,0.68,135.87,135.85,6.16935302]
[1763447840622,0.68,135.87,135.84,6.16935302]
[1763447840838,13.98948572,135.87,135.84,6.16935302]
[1763447841025,18.12096,135.85,135.84,6.16935302]
[1763447841229,35.85044572,135.85,135.81,0.1]
[1763447841417,13.99948572,135.84,135.81,6.26935302]
[1763447841619,0.69,135.84,135.81,6.26935302]
[1763447841927,22.54096,135.85,135.81,6.26935302]
[1763447841928,13.99948572,135.83,135.81,0.1]
[1763447842242,4.42,135.82,135.81,0.1]
[1763447843337,18.41948572,135.82,135.81,0.1]
[1763447843826,18.12096,135.8,135.79,0.1]
[1763447844032,31.43044572,135.8,135.79,0.1]
[1763447844237,32.12044572,135.8,135.74,6.16935302]
[1763447844427,32.12044572,135.8,135.71,1.93593088]
[1763447844428,13.30948572,135.75,135.71,8.1052839]
[1763447844737,17.72948572,135.74,135.71,8.1052839]
[1763447844954,18.12096,135.76,135.71,8.1052839]
[1763447845141,4.42,135.75,135.71,22.11476962]
[1763447845326,13.30948572,135.74,135.71,1.93593088]
[1763447845720,4.42,135.75,135.73,13.30948572]
[1763447846344,4.42,135.75,135.73,14.00948572]
[1763447846547,4.42,135.75,135.73,0.7]
[1763447846750,4.42,135.75,135.73,14.00948572]
[1763447847445,4.42,135.75,135.72,13.30948572]
[1763447847756,4.42,135.75,135.72,14.00948572]
[1763447848328,17.72948572,135.75,135.71,1.93593088]
[1763447848621,0.69,135.74,135.71,1.93593088]
[1763447848822,32.12044572,135.74,135.71,1.93593088]
[1763447849137,32.12044572,135.74,135.71,2.63593088]
[1763447849138,18.12096,135.74,135.71,2.63593088]
[1763447849449,18.12096,135.74,135.71,1.93593088]
[1763447849629,18.81096,135.74,135.71,1.93593088]
[1763447849954,18.12096,135.74,135.71,1.93593088]
[1763447850164,0.69,135.73,135.71,1.93593088]
[1763447850328,4.42,135.72,135.71,1.93593088]
[1763447850750,5.11,135.72,135.71,1.93593088]
[1763447851760,4.42,135.72,135.71,1.93593088]
[1763447852263,5.11,135.72,135.71,1.93593088]
[1763447852878,5.11,135.72,135.71,1.21593088]
[1763447853045,12.78541061,135.72,135.71,1.21593088]
[1763447853445,5.11,135.72,135.71,1.21593088]
[1763447853784,4.42,135.73,135.71,1.21593088]
[1763447854088,4.42,135.73,135.72,8.37541061]
[1763447854645,4.42,135.73,135.71,8.89134149]
[1763447854863,4.42,135.73,135.71,9.59134149]
[1763447855442,4.42,135.73,135.71,1.21593088]
[1763447855654,4.42,135.73,135.71,8.89134149]
[1763447855983,4.42,135.73,135.71,1.21593088]
[1763447856349,4.42,135.73,135.71,8.89134149]
[1763447856555,4.42,135.73,135.72,8.37541061]
[1763447857464,4.42,135.73,135.71,8.89134149]
[1763447857666,4.42,135.73,135.71,9.59134149]
[1763447857873,4.42,135.73,135.71,8.89134149]
[1763447858081,4.42,135.73,135.71,9.59134149]
[1763447859458,4.42,135.73,135.71,1.21593088]
[1763447859665,5.11,135.73,135.71,1.21593088]
[1763447859869,4.42,135.73,135.71,1.21593088]
[1763447860258,4.42,135.73,135.72,7.67541061]
[1763447860464,4.42,135.73,135.71,1.21593088]
[1763447861356,5.11,135.73,135.71,1.21593088]
[1763447861562,4.42,135.73,135.71,1.21593088]
[1763447861862,7.67541061,135.75,135.71,1.91593088]
[1763447862065,10.50882769,135.79,135.72,8.37541061]
[1763447862285,12.09541061,135.78,135.73,7.67541061]
[1763447862464,18.12096,135.8,135.74,7.67541061]
[1763447862664,12.09541061,135.79,135.74,8.37541061]
[1763447862893,4.42,135.79,135.75,0.7]
[1763447863066,8.39541061,135.78,135.73,0.7]
[1763447863466,0.72,135.77,135.73,0.7]
[1763447863674,4.42,135.76,135.73,8.37541061]
[1763447864269,4.42,135.76,135.73,0.7]
[1763447864586,4.42,135.76,135.74,0.7]
[1763447865098,8.39541061,135.75,135.71,1.91593088]
[1763447865389,7.67541061,135.75,135.72,0.7]
[1763447865696,9.78882769,135.79,135.73,0.7]
[1763447865697,7.67541061,135.78,135.73,0.7]
[1763447865883,7.67541061,135.78,135.72,7.67541061]
[1763447865884,4.42,135.77,135.72,7.67541061]
[1763447866202,5.14,135.77,135.72,7.67541061]
[1763447866504,0.72,135.76,135.72,8.37541061]
[1763447867206,4.42,135.77,135.73,8.37541061]
[1763447867422,0.72,135.82,135.76,7.67541061]
[1763447867572,4.42,135.81,135.78,7.67541061]
[1763447868008,4.42,135.81,135.77,8.37541061]
[1763447868211,4.42,135.81,135.78,7.67541061]
[1763447868393,4.42,135.81,135.79,7.67541061]
[1763447868580,4.42,135.81,135.78,7.67541061]
[1763447868783,0.72,135.8,135.75,7.67541061]
[1763447868985,0.72,135.8,135.75,0.7]
[1763447868986,8.39541061,135.8,135.75,0.7]
[1763447869190,8.39541061,135.8,135.75,8.37541061]
[1763447869396,0.72,135.79,135.75,0.7]
[1763447869593,4.42,135.78,135.73,8.37541061]
[1763447869915,4.42,135.78,135.74,7.67541061]
[1763447870095,5.14,135.78,135.74,8.37541061]
[1763447870295,0.72,135.77,135.72,7.67541061]
[1763447870480,0.72,135.77,135.73,7.67541061]
[1763447870680,12.09541061,135.78,135.73,7.67541061]
[1763447870681,4.42,135.78,135.73,7.67541061]
[1763447870882,5.14,135.78,135.73,8.37541061]
[1763447871192,4.42,135.78,135.75,7.67541061]
[1763447871509,4.42,135.78,135.74,8.37541061]
[1763447871683,5.14,135.78,135.74,8.37541061]
[1763447872106,5.14,135.78,135.75,0.7]
[1763447872107,4.42,135.78,135.75,0.7]
[1763447874094,4.42,135.78,135.75,8.37541061]
[1763447874295,4.42,135.78,135.76,7.67541061]
[1763447874520,4.42,135.78,135.76,8.37541061]
[1763447875113,4.42,135.79,135.77,0.7]
[1763447875317,4.42,135.79,135.76,8.37541061]
[1763447876018,4.42,135.79,135.78,7.67541061]
[1763447876223,0.72,135.82,135.78,7.67541061]
[1763447876224,4.42,135.82,135.78,7.67541061]
[1763447876383,4.42,135.82,135.79,7.67541061]
[1763447876585,5.14,135.82,135.78,8.37541061]
[1763447878893,8.39541061,135.81,135.76,6.16935302]
[1763447879117,8.39541061,135.81,135.76,13.84476363]
[1763447879308,0.72,135.8,135.76,14.54476363]
[1763447879490,0.72,135.8,135.77,6.16935302]
[1763447879687,5.14,135.82,135.77,14.54476363]
[1763447879887,5.14,135.82,135.78,0.7]
[1763447880107,0.72,135.81,135.77,14.54476363]
[1763447880420,0.72,135.82,135.78,0.7]
[1763447880601,4.42,135.81,135.78,0.7]
[1763447880799,4.42,135.81,135.78,10.0881772]
[1763447881498,4.42,135.81,135.78,6.86935302]
[1763447882183,0.72,135.86,135.79,3.91882418]
[1763447882518,3.93882418,135.85,135.81,6.16935302]
[1763447882722,3.21882418,135.83,135.81,6.16935302]
[1763447883010,12.08467156,135.82,135.78,6.16935302]
[1763447883188,18.12096,135.86,135.78,6.16935302]
[1763447883189,12.08467156,135.81,135.78,6.16935302]
[1763447883391,4.42,135.81,135.78,6.16935302]
[1763447883690,4.38182328,135.81,135.78,6.86935302]
[1763447884110,4.38182328,135.81,135.79,6.16935302]
[1763447884313,4.38182328,135.81,135.79,6.86935302]
[1763447884913,0.2,135.87,135.8,8.36467156]
[1763447885218,10.22467156,135.87,135.83,6.16935302]
[1763447885390,10.22467156,135.87,135.82,6.16935302]
[1763447885391,7.66467156,135.84,135.82,6.16935302]
[1763447885588,7.66467156,135.85,135.82,6.16935302]
[1763447885791,7.66467156,135.85,135.82,6.86935302]
[1763447885993,8.38467156,135.85,135.82,6.86935302]
[1763447886705,0.72,135.84,135.81,6.16935302]
[1763447887012,7.66467156,135.85,135.82,6.16935302]
[1763447887405,8.38467156,135.85,135.82,6.16935302]
[1763447887796,0.2,135.87,135.84,6.16935302]
[1763447888117,0.2,135.87,135.83,8.36467156]
[1763447888118,4.62,135.87,135.85,6.16935302]
[1763447888636,4.62,135.87,135.84,13.83402458]
[1763447888828,4.62,135.87,135.85,6.16935302]
[1763447889129,0.72,135.86,135.84,6.16935302]
[1763447889328,0.72,135.86,135.83,6.16935302]
[1763447889329,7.66467156,135.85,135.83,6.16935302]
[1763447889512,7.66467156,135.84,135.81,6.16935302]
[1763447889689,12.08467156,135.83,135.81,6.16935302]
[1763447890236,12.08467156,135.83,135.78,0.7]
[1763447890237,0.72,135.82,135.8,6.16935302]
[1763447890432,5.14,135.83,135.81,6.16935302]